fUSD/lending_fUSD_20250522
["ID","MTS","AMOUNT","RATE_DAILY","PERIOD"]
[361999957,1747931445235,-469.99,0.00032876,5]
[361999958,1747931445245,-10294.5,0.00032876,5]
[361999959,1747931445254,-420.0,0.00032876,5]
[361999960,1747931445264,-420.0,0.00032876,5]
[361999961,1747931445273,-444.9,0.00032876,5]
[361999962,1747931445283,-576.31,0.00032876,5]
[361999963,1747931445292,-737.94,0.00032876,5]
[361999964,1747931445302,-527.64,0.00032876,5]
[361999966,1747931445312,-771.94,0.00032876,5]
[361999967,1747931445325,-910.63,0.00032876,5]
[361999968,1747931445334,-854.71,0.00032876,5]
[361999969,1747931445344,-730.92,0.00032876,5]
[361999970,1747931445353,-420.0,0.00032876,5]
[361999971,1747931445363,-420.0,0.00032876,5]
[361999972,1747931445454,-420.0,0.00032876,5]
[361999973,1747931445464,-699.27,0.00032876,5]
[361999974,1747931445473,-420.0,0.00032876,5]
[361999975,1747931445482,-420.0,0.00032876,5]
[361999976,1747931445492,-420.0,0.00032876,5]
[361999977,1747931445501,-420.0,0.00032876,5]
[361999978,1747931445510,-420.0,0.00032876,5]
[361999979,1747931445519,-420.0,0.00032876,5]
[361999980,1747931445528,-1059.24,0.00032876,5]
[361999981,1747931445537,-600.36,0.00032876,5]
[361999982,1747931445546,-420.0,0.00032876,5]
[361999983,1747931445556,-2359.56,0.00032876,5]
[361999984,1747931445569,-713.12,0.00032876,5]
[361999985,1747931445578,-420.0,0.00032876,5]
[361999986,1747931445587,-420.0,0.00032876,5]
[361999987,1747931445597,-420.0,0.00032876,5]
[361999988,1747931445606,-250.0,0.00032898,2]
[361999989,1747931445616,-800.0,0.000329,12]
[361999990,1747931445626,-843.84191387,0.00033003,2]
[361999991,1747931445635,-7245.12264966,0.00033012,2]
[361999992,1747931445645,-777.6,0.00033014,2]
[361999993,1747931445655,-365.73537631,0.0003305,2]
[361999994,1747931445665,-947.463,0.00033063,34]
[361999995,1747931445674,-197.16180698,0.00033133,2]
[361999996,1747931445683,-591.48542094,0.0003314,2]
[361999997,1747931445693,-4454.4609975,0.00033143,2]
[361999998,1747931445702,-411.85433202,0.00033143,2]
[361999999,1747931445711,-620.0155882,0.00033143,2]
[362000000,1747931445720,-633.63,0.00033149,5]
[362000001,1747931445729,-150.0,0.00033149,2]
[362000002,1747931445738,-199.5729379,0.0003315,7]
[362000003,1747931445748,-150.657276,0.0003315,5]
[362000004,1747931445757,-151.0,0.0003315,7]
[362000005,1747931445766,-164.583181,0.0003315,7]
[362000006,1747931445776,-507.46,0.0003315,5]
[362000007,1747931445786,-420.0,0.0003315,5]
[362000008,1747931445795,-420.0,0.0003315,5]
[362000009,1747931445805,-559.88,0.0003315,5]
[362000010,1747931445816,-420.0,0.0003315,5]
[362000011,1747931445825,-420.0,0.0003315,5]
[362000012,1747931445834,-574.32,0.0003315,5]
[362000013,1747931445844,-441.89,0.0003315,5]
[362000014,1747931445853,-420.0,0.0003315,5]
[362000015,1747931445863,-420.0,0.0003315,5]
[362000016,1747931445873,-510.38,0.0003315,5]
[362000017,1747931445884,-420.0,0.0003315,5]
[362000018,1747931445894,-420.0,0.0003315,5]
[362000019,1747931445905,-420.0,0.0003315,5]
[362000020,1747931445915,-458.21,0.0003315,5]
[362000021,1747931445925,-420.0,0.0003315,5]
[362000022,1747931445935,-420.0,0.0003315,5]
[362000023,1747931445944,-194.03852602,0.0003315,5]
[362000025,1747931445958,-420.0,0.0003315,5]
[362000026,1747931445968,-420.0,0.0003315,5]
[362000028,1747931445978,-571.52,0.0003315,5]
[362000030,1747931445988,-420.0,0.0003315,5]
[362000032,1747931445998,-420.0,0.0003315,5]
[362000034,1747931446008,-420.0,0.0003315,5]
[362000036,1747931446017,-585.25,0.0003315,5]
[362000038,1747931446026,-420.0,0.0003315,5]
[362000040,1747931446035,-420.0,0.0003315,5]
[362000041,1747931446044,-420.0,0.0003315,5]
[362000042,1747931446053,-420.0,0.0003315,5]
[362000043,1747931446066,-420.0,0.0003315,5]
[362000044,1747931446076,-420.0,0.0003315,5]
[362000045,1747931446086,-420.0,0.0003315,5]
[362000047,1747931446095,-517.26,0.0003315,5]
[362000049,1747931446104,-420.0,0.0003315,5]
[362000050,1747931446113,-420.0,0.0003315,5]
[362000052,1747931446122,-619.68,0.0003315,5]
[362000054,1747931446131,-420.0,0.0003315,5]
[362000056,1747931446141,-420.0,0.0003315,5]
[362000058,1747931446151,-420.0,0.0003315,5]
[362000060,1747931446161,-420.0,0.0003315,5]
[362000062,1747931446171,-420.0,0.0003315,5]
[362000064,1747931446180,-420.0,0.0003315,5]
[362000066,1747931446189,-478.76,0.0003315,5]
[362000068,1747931446198,-420.0,0.0003315,5]
[362000070,1747931446208,-420.0,0.0003315,5]
[362000072,1747931446217,-420.0,0.0003315,5]
[362000074,1747931446226,-420.0,0.0003315,5]
[362000076,1747931446235,-338.16,0.0003315,5]
[362000078,1747931446244,-574.65,0.0003315,5]
[362000080,1747931446253,-420.0,0.0003315,5]
[362000082,1747931446262,-643.55,0.0003315,5]
[362000084,1747931446271,-481.48,0.0003315,5]
[362000085,1747931446281,-420.0,0.0003315,5]
[362000087,1747931446292,-420.0,0.0003315,5]
[362000089,1747931446305,-517.5,0.0003315,5]
[362000091,1747931446316,-420.0,0.0003315,5]
[362000092,1747931446325,-465.55,0.0003315,5]
[362000093,1747931446334,-426.67,0.0003315,5]
[362000094,1747931446342,-420.0,0.0003315,5]
[362000095,1747931446351,-420.0,0.0003315,5]
[362000096,1747931446360,-699.94,0.0003315,5]
[362000097,1747931446370,-420.0,0.0003315,5]
[362000098,1747931446379,-420.0,0.0003315,5]
[362000099,1747931446388,-420.0,0.0003315,5]
[362000100,1747931446399,-420.0,0.0003315,5]
[362000101,1747931446409,-420.0,0.0003315,5]
[362000102,1747931446421,-420.0,0.0003315,5]
[362000103,1747931446431,-420.0,0.0003315,5]
[362000104,1747931446442,-420.0,0.0003315,5]
[362000105,1747931446452,-420.0,0.0003315,5]
[362000106,1747931446460,-487.29,0.0003315,5]
[362000107,1747931446472,-420.0,0.0003315,5]
[362000108,1747931446481,-420.0,0.0003315,5]
[362000109,1747931446491,-619.65,0.0003315,5]
[362000110,1747931446499,-365.9593796,0.0003315,5]
[362000111,1747931446509,-420.0,0.0003315,5]
[362000112,1747931446518,-420.0,0.0003315,5]
[362000113,1747931446527,-420.0,0.0003315,5]
[362000114,1747931446536,-391.42906539,0.0003315,5]
[362000115,1747931446546,-420.0,0.0003315,5]
[362000116,1747931446555,-420.0,0.0003315,5]
[362000117,1747931446569,-420.0,0.0003315,5]
[362000118,1747931446578,-420.0,0.0003315,5]
[362000119,1747931446588,-424.6,0.0003315,5]
[362000120,1747931446598,-420.0,0.0003315,5]
[362000121,1747931446607,-420.0,0.0003315,5]
[362000122,1747931446616,-420.0,0.0003315,5]
[362000123,1747931446626,-449.24,0.0003315,5]
[362000124,1747931446635,-420.0,0.0003315,5]
[362000125,1747931446644,-420.0,0.0003315,5]
[362000126,1747931446654,-420.0,0.0003315,5]
[362000127,1747931446663,-607.36,0.0003315,5]
[362000128,1747931446672,-300.0,0.0003315,5]
[362000129,1747931446682,-420.0,0.0003315,5]
[362000130,1747931446691,-420.0,0.0003315,5]
[362000131,1747931446701,-476.01,0.0003315,5]
[362000132,1747931446710,-521.61,0.0003315,5]
[362000133,1747931446720,-810.06,0.0003315,5]
[362000134,1747931446729,-398.45130449,0.0003315,5]
[362000135,1747931446738,-685.18,0.0003315,5]
[362000136,1747931446747,-420.0,0.0003315,5]
[362000137,1747931446757,-573.3,0.0003315,5]
[362000138,1747931446767,-455.54652714,0.0003315,5]
[362000139,1747931446776,-420.0,0.0003315,5]
[362000140,1747931446786,-420.0,0.0003315,5]
[362000141,1747931446795,-556.25,0.0003315,5]
[362000142,1747931446804,-420.0,0.0003315,5]
[362000143,1747931446817,-420.0,0.0003315,5]
[362000144,1747931446826,-420.0,0.0003315,5]
[362000145,1747931446836,-420.0,0.0003315,5]
[362000146,1747931446846,-420.0,0.0003315,5]
[362000147,1747931446856,-420.0,0.0003315,5]
[362000148,1747931446865,-460.5,0.0003315,5]
[362000149,1747931446875,-420.0,0.0003315,5]
[362000150,1747931446886,-420.0,0.0003315,5]
[362000151,1747931446897,-420.0,0.0003315,5]
[362000152,1747931446906,-420.0,0.0003315,5]
[362000153,1747931446915,-501.11,0.0003315,5]
[362000154,1747931446926,-420.0,0.0003315,5]
[362000155,1747931446937,-420.0,0.0003315,5]
[362000156,1747931446947,-420.0,0.0003315,5]
[362000157,1747931446958,-420.0,0.0003315,5]
[362000158,1747931446971,-209.60965001,0.0003315,5]
[362000159,1747931446982,-420.0,0.0003315,5]
[362000160,1747931446992,-420.0,0.0003315,5]
[362000161,1747931447001,-420.0,0.0003315,5]
[362000162,1747931447011,-420.0,0.0003315,5]
[362000163,1747931447020,-420.0,0.0003315,5]
[362000164,1747931447030,-420.0,0.0003315,5]
[362000165,1747931447039,-420.0,0.0003315,5]
[362000166,1747931447048,-420.0,0.0003315,5]
[362000167,1747931447058,-500.0,0.0003315,5]
[362000168,1747931447072,-553.95927308,0.0003315,5]
[362000169,1747931447082,-420.0,0.0003315,5]
[362000170,1747931447091,-420.0,0.0003315,5]
[362000171,1747931447101,-420.0,0.0003315,5]
[362000172,1747931447110,-420.0,0.0003315,5]
[362000173,1747931447120,-420.0,0.0003315,5]
[362000174,1747931447129,-420.0,0.0003315,5]
[362000175,1747931447138,-420.0,0.0003315,5]
[362000176,1747931447149,-420.0,0.0003315,5]
[362000177,1747931447160,-420.0,0.0003315,5]
[362000178,1747931447171,-420.0,0.0003315,5]
[362000179,1747931447180,-465.67,0.0003315,5]
[362000180,1747931447190,-420.0,0.0003315,5]
[362000181,1747931447199,-695.35,0.0003315,5]
[362000182,1747931447209,-420.0,0.0003315,5]
[362000183,1747931447218,-261.94889586,0.0003315,5]
[362000184,1747931447227,-484.01,0.0003315,5]
[362000185,1747931447237,-420.0,0.0003315,5]
[362000186,1747931447246,-991.58,0.0003315,5]
[362000187,1747931447255,-420.0,0.0003315,5]
[362000188,1747931447266,-507.82,0.0003315,5]
[362000189,1747931447275,-420.0,0.0003315,5]
[362000190,1747931447284,-420.0,0.0003315,5]
[362000191,1747931447294,-575.67,0.0003315,5]
[362000192,1747931447303,-839.03,0.0003315,5]
[362000193,1747931447316,-420.0,0.0003315,5]
[362000194,1747931447326,-838.5,0.0003315,5]
[362000195,1747931447335,-435.15,0.0003315,5]
[362000196,1747931447345,-420.0,0.0003315,5]
[362000197,1747931447354,-505.58,0.0003315,5]
[362000198,1747931447364,-463.34,0.0003315,5]
[362000199,1747931447373,-420.0,0.0003315,5]
[362000200,1747931447382,-420.0,0.0003315,5]
[362000201,1747931447392,-678.74,0.0003315,5]
[362000202,1747931447401,-805.85,0.0003315,5]
[362000203,1747931447410,-501.68,0.0003315,5]
[362000204,1747931447419,-420.0,0.0003315,5]
[362000205,1747931447429,-598.02,0.0003315,5]
[362000206,1747931447438,-420.0,0.0003315,5]
[362000207,1747931447447,-420.0,0.0003315,5]
[362000208,1747931447456,-420.0,0.0003315,5]
[362000209,1747931447465,-420.0,0.0003315,5]
[362000210,1747931447475,-420.0,0.0003315,5]
[362000211,1747931447485,-420.0,0.0003315,5]
[362000212,1747931447494,-598.09,0.0003315,5]
[362000213,1747931447503,-420.0,0.0003315,5]
[362000214,1747931447512,-420.0,0.0003315,5]
[362000215,1747931447522,-420.0,0.0003315,5]
[362000216,1747931447531,-420.0,0.0003315,5]
[362000217,1747931447540,-420.0,0.0003315,5]
[362000218,1747931447549,-549.6,0.0003315,5]
[362000219,1747931447558,-429.94,0.0003315,5]
[362000220,1747931447571,-420.0,0.0003315,5]
[362000221,1747931447580,-638.92,0.0003315,5]
[362000222,1747931447589,-420.0,0.0003315,5]
[362000223,1747931447599,-420.0,0.0003315,5]
[362000224,1747931447608,-420.0,0.0003315,5]
[362000225,1747931447617,-420.0,0.0003315,5]
[362000226,1747931447626,-420.0,0.0003315,5]
[362000227,1747931447635,-515.55,0.0003315,5]
[362000228,1747931447645,-420.0,0.0003315,5]
[362000229,1747931447654,-507.64,0.0003315,5]
[362000230,1747931447669,-629.74,0.0003315,5]
[362000231,1747931447685,-453.68,0.0003315,5]
[362000232,1747931447695,-420.0,0.0003315,5]
[362000233,1747931447705,-1000.0,0.0003315,5]
[362000234,1747931447714,-420.0,0.0003315,5]
[362000235,1747931447723,-532.8,0.0003315,5]
[362000236,1747931447732,-420.0,0.0003315,5]
[362000237,1747931447742,-431.81,0.0003315,5]
[362000238,1747931447752,-524.58,0.0003315,5]
[362000239,1747931447763,-420.0,0.0003315,5]
[362000240,1747931447772,-441.47,0.0003315,5]
[362000241,1747931447782,-420.0,0.0003315,5]
[362000242,1747931447792,-313.11926648,0.0003315,5]
[362000243,1747931447801,-420.0,0.0003315,5]
[362000244,1747931447811,-633.62,0.0003315,5]
[362000245,1747931447825,-703.97,0.0003315,5]
[362000246,1747931447835,-475.2,0.0003315,5]
[362000247,1747931447844,-420.0,0.0003315,5]
[362000248,1747931447853,-420.0,0.0003315,5]
[362000249,1747931447862,-420.0,0.0003315,5]
[362000250,1747931447871,-420.0,0.0003315,5]
[362000251,1747931447881,-420.0,0.0003315,5]
[362000252,1747931447893,-420.0,0.0003315,5]
[362000253,1747931447902,-420.0,0.0003315,5]
[362000254,1747931447911,-439.52,0.0003315,5]
[362000255,1747931447921,-608.36,0.0003315,5]
[362000256,1747931447931,-420.0,0.0003315,5]
[362000257,1747931447941,-420.0,0.0003315,5]
[362000258,1747931447951,-420.0,0.0003315,5]
[362000259,1747931447961,-420.0,0.0003315,5]
[362000260,1747931447972,-596.33,0.0003315,5]
[362000261,1747931447981,-548.86,0.0003315,5]
[362000262,1747931447991,-709.09,0.0003315,5]
[362000263,1747931448000,-420.0,0.0003315,5]
[362000264,1747931448010,-420.0,0.0003315,5]
[362000265,1747931448020,-511.66,0.0003315,5]
[362000266,1747931448029,-420.0,0.0003315,5]
[362000267,1747931448039,-675.17,0.0003315,5]
[362000268,1747931448049,-565.78375528,0.0003315,5]
[362000269,1747931448058,-677.8,0.0003315,5]
[362000270,1747931448073,-530.1,0.0003315,5]
[362000271,1747931448082,-519.59,0.0003315,5]
[362000272,1747931448092,-420.0,0.0003315,5]
[362000273,1747931448102,-1248.53,0.0003315,5]
[362000274,1747931448111,-521.3,0.0003315,5]
[362000275,1747931448121,-420.0,0.0003315,5]
[362000276,1747931448130,-416.50771771,0.0003315,5]
[362000277,1747931448140,-923.09,0.0003315,5]
[362000278,1747931448150,-420.0,0.0003315,5]
[362000279,1747931448159,-487.65,0.0003315,5]
[362000280,1747931448169,-420.0,0.0003315,5]
[362000281,1747931448179,-420.0,0.0003315,5]
[362000282,1747931448189,-420.0,0.0003315,5]
[362000283,1747931448198,-420.0,0.0003315,5]
[362000284,1747931448208,-420.0,0.0003315,5]
[362000285,1747931448217,-476.75,0.0003315,5]
[362000286,1747931448227,-420.0,0.0003315,5]
[362000287,1747931448237,-655.31,0.0003315,5]
[362000288,1747931448246,-420.0,0.0003315,5]
[362000289,1747931448256,-420.0,0.0003315,5]
[362000290,1747931448266,-840.14,0.0003315,5]
[362000291,1747931448275,-420.0,0.0003315,5]
[362000292,1747931448285,-485.85,0.0003315,5]
[362000293,1747931448294,-675.46,0.0003315,5]
[362000294,1747931448304,-563.93358716,0.0003315,5]
[362000295,1747931448316,-420.0,0.0003315,5]
[362000296,1747931448326,-420.0,0.0003315,5]
[362000297,1747931448336,-687.97,0.0003315,5]
[362000298,1747931448345,-420.0,0.0003315,5]
[362000299,1747931448354,-1180.69,0.0003315,5]
[362000300,1747931448363,-775.08,0.0003315,5]
[362000301,1747931448372,-420.0,0.0003315,5]
[362000302,1747931448382,-420.0,0.0003315,5]
[362000303,1747931448392,-433.49,0.0003315,5]
[362000304,1747931448401,-420.0,0.0003315,5]
[362000305,1747931448411,-619.1,0.0003315,5]
[362000306,1747931448420,-643.05,0.0003315,5]
[362000307,1747931448430,-420.0,0.0003315,5]
[362000308,1747931448439,-420.0,0.0003315,5]
[362000309,1747931448449,-420.0,0.0003315,5]
[362000310,1747931448458,-558.78,0.0003315,5]
[362000311,1747931448468,-420.0,0.0003315,5]
[362000312,1747931448477,-536.83,0.0003315,5]
[362000313,1747931448487,-420.0,0.0003315,5]
[362000314,1747931448496,-638.2,0.0003315,5]
[362000315,1747931448505,-420.0,0.0003315,5]
[362000316,1747931448515,-461.0,0.0003315,5]
[362000317,1747931448524,-214.60306588,0.0003315,5]
[362000318,1747931448534,-420.0,0.0003315,5]
[362000319,1747931448543,-420.0,0.0003315,5]
[362000320,1747931448553,-420.0,0.0003315,5]
[362000321,1747931448563,-541.23,0.0003315,5]
[362000322,1747931448575,-420.0,0.0003315,5]
[362000323,1747931448584,-420.0,0.0003315,5]
[362000324,1747931448593,-420.0,0.0003315,5]
[362000325,1747931448603,-500.39,0.0003315,5]
[362000326,1747931448612,-420.0,0.0003315,5]
[362000327,1747931448622,-601.08,0.0003315,5]
[362000328,1747931448632,-420.0,0.0003315,5]
[362000329,1747931448642,-420.0,0.0003315,5]
[362000330,1747931448651,-797.69,0.0003315,5]
[362000331,1747931448660,-420.0,0.0003315,5]
[362000332,1747931448670,-518.30106374,0.0003315,5]
[362000333,1747931448679,-420.0,0.0003315,5]
[362000334,1747931448688,-726.12,0.0003315,5]
[362000335,1747931448698,-579.81,0.0003315,5]
[362000336,1747931448707,-420.0,0.0003315,5]
[362000337,1747931448717,-552.0,0.0003315,5]
[362000338,1747931448726,-518.61,0.0003315,5]
[362000339,1747931448735,-420.0,0.0003315,5]
[362000340,1747931448745,-446.4,0.0003315,5]
[362000341,1747931448754,-679.14,0.0003315,5]
[362000342,1747931448764,-420.0,0.0003315,5]
[362000343,1747931448774,-478.85,0.0003315,5]
[362000344,1747931448783,-431.98,0.0003315,5]
[362000345,1747931448793,-545.57,0.0003315,5]
[362000346,1747931448803,-420.0,0.0003315,5]
[362000347,1747931448813,-420.0,0.0003315,5]
[362000348,1747931448826,-420.0,0.0003315,5]
[362000349,1747931448836,-420.0,0.0003315,5]
[362000350,1747931448846,-420.0,0.0003315,5]
[362000351,1747931448856,-498.22,0.0003315,5]
[362000352,1747931448867,-420.0,0.0003315,5]
[362000353,1747931448877,-555.87,0.0003315,5]
[362000354,1747931448889,-800.0,0.0003315,12]
[362000355,1747931448899,-800.0,0.0003315,12]
[362000356,1747931448909,-800.0,0.0003315,12]
[362000357,1747931448918,-226.25511347,0.0003315,12]
[362000358,1747931448929,-420.0,0.0003315,5]
[362000359,1747931448939,-656.16,0.0003315,5]
[362000360,1747931448950,-467.27,0.0003315,5]
[362000361,1747931448961,-420.0,0.0003315,5]
[362000362,1747931448970,-449.64,0.0003315,5]
[362000363,1747931448979,-420.0,0.0003315,5]
[362000364,1747931448989,-468.07,0.0003315,5]
[362000365,1747931448999,-456.63,0.0003315,5]
[362000366,1747931449008,-420.0,0.0003315,5]
[362000367,1747931449018,-420.0,0.0003315,5]
[362000368,1747931449027,-420.0,0.0003315,5]
[362000369,1747931449037,-420.0,0.0003315,5]
[362000370,1747931449047,-420.0,0.0003315,5]
[362000371,1747931449056,-420.0,0.0003315,5]
[362000372,1747931449068,-420.0,0.0003315,5]
[362000373,1747931449077,-501.22,0.0003315,5]
[362000374,1747931449086,-420.0,0.0003315,5]
[362000375,1747931449095,-420.0,0.0003315,5]
[362000376,1747931449104,-420.0,0.0003315,5]
[362000377,1747931449115,-420.0,0.0003315,5]
[362000378,1747931449124,-420.0,0.0003315,5]
[362000379,1747931449133,-440.44,0.0003315,5]
[362000380,1747931449143,-630.08,0.0003315,5]
[362000381,1747931449152,-454.72,0.0003315,5]
[362000382,1747931449163,-420.0,0.0003315,5]
[362000383,1747931449172,-420.0,0.0003315,5]
[362000384,1747931449181,-420.0,0.0003315,5]
[362000385,1747931449191,-435.01,0.0003315,5]
[362000386,1747931449200,-420.0,0.0003315,5]
[362000387,1747931449209,-420.0,0.0003315,5]
[362000388,1747931449220,-1125.98,0.0003315,5]
[362000389,1747931449229,-420.0,0.0003315,5]
[362000390,1747931449239,-420.0,0.0003315,5]
[362000391,1747931449248,-405.7055195,0.0003315,5]
[362000392,1747931449258,-420.0,0.0003315,5]
[362000393,1747931449267,-530.85,0.0003315,5]
[362000394,1747931449276,-420.0,0.0003315,5]
[362000395,1747931449286,-420.0,0.0003315,5]
[362000396,1747931449295,-420.0,0.0003315,5]
[362000397,1747931449304,-633.44,0.0003315,5]
[362000398,1747931449314,-480.0,0.0003315,5]
[362000399,1747931449327,-470.67,0.0003315,5]
[362000400,1747931449337,-420.0,0.0003315,5]
[362000401,1747931449346,-1601.82,0.0003315,5]
[362000402,1747931449355,-420.0,0.0003315,5]
[362000403,1747931449365,-420.0,0.0003315,5]
[362000404,1747931449374,-588.28,0.0003315,5]
[362000405,1747931449383,-810.48,0.0003315,5]
[362000406,1747931449392,-863.06,0.0003315,5]
[362000407,1747931449402,-420.0,0.0003315,5]
[362000408,1747931449412,-420.0,0.0003315,5]
[362000409,1747931449421,-462.28,0.0003315,5]
[362000410,1747931449430,-420.0,0.0003315,5]
[362000411,1747931449440,-481.97,0.0003315,5]
[362000412,1747931449449,-420.0,0.0003315,5]
[362000413,1747931449460,-420.0,0.0003315,5]
[362000414,1747931449470,-420.0,0.0003315,5]
[362000415,1747931449479,-420.0,0.0003315,5]
[362000416,1747931449488,-420.0,0.0003315,5]
[362000417,1747931449497,-420.0,0.0003315,5]
[362000418,1747931449507,-420.0,0.0003315,5]
[362000419,1747931449515,-420.0,0.0003315,5]
[362000420,1747931449525,-785.58,0.0003315,5]
[362000421,1747931449534,-420.0,0.0003315,5]
[362000422,1747931449543,-550.3,0.0003315,5]
[362000423,1747931449552,-565.32,0.0003315,5]
[362000424,1747931449562,-420.0,0.0003315,5]
[362000425,1747931449574,-640.47,0.0003315,5]
[362000426,1747931449700,-449.81,0.0003315,5]
[362000427,1747931449716,-420.0,0.0003315,5]
[362000428,1747931449726,-447.23,0.0003315,5]
[362000429,1747931449736,-420.0,0.0003315,5]
[362000430,1747931449745,-168.8677527,0.0003315,5]
[362000431,1747931449755,-609.23,0.0003315,5]
[362000432,1747931449765,-420.0,0.0003315,5]
[362000433,1747931449774,-472.73,0.0003315,5]
[362000434,1747931449783,-494.96,0.0003315,5]
[362000435,1747931449793,-536.24,0.0003315,5]
[362000436,1747931449802,-420.0,0.0003315,5]
[362000437,1747931449812,-420.0,0.0003315,5]
[362000438,1747931449825,-605.07,0.0003315,5]
[362000439,1747931449835,-420.0,0.0003315,5]
[362000440,1747931449844,-659.26,0.0003315,5]
[362000441,1747931449855,-1998.57,0.0003315,5]
[362000442,1747931449865,-420.0,0.0003315,5]
[362000443,1747931449874,-497.76,0.0003315,5]
[362000444,1747931449885,-420.0,0.0003315,5]
[362000445,1747931449898,-789.31,0.0003315,5]
[362000446,1747931449908,-300.0,0.0003315,5]
[362000447,1747931449918,-420.0,0.0003315,5]
[362000448,1747931449929,-420.0,0.0003315,5]
[362000449,1747931449941,-420.0,0.0003315,5]
[362000450,1747931449950,-420.0,0.0003315,5]
[362000451,1747931449960,-420.0,0.0003315,5]
[362000452,1747931449970,-420.0,0.0003315,5]
[362000453,1747931449979,-694.62,0.0003315,5]
[362000454,1747931449990,-473.05,0.0003315,5]
[362000455,1747931450001,-946.75,0.0003315,5]
[362000456,1747931450011,-426.15,0.0003315,5]
[362000457,1747931450020,-420.0,0.0003315,5]
[362000458,1747931450030,-420.0,0.0003315,5]
[362000459,1747931450040,-420.0,0.0003315,5]
[362000460,1747931450049,-479.62,0.0003315,5]
[362000461,1747931450060,-809.66,0.0003315,5]
[362000462,1747931450073,-420.0,0.0003315,5]
[362000463,1747931450082,-420.0,0.0003315,5]
[362000464,1747931450092,-420.0,0.0003315,5]
[362000465,1747931450101,-632.27,0.0003315,5]
[362000466,1747931450111,-420.0,0.0003315,5]
[362000467,1747931450120,-420.0,0.0003315,5]
[362000468,1747931450129,-420.0,0.0003315,5]
[362000469,1747931450139,-420.0,0.0003315,5]
[362000470,1747931450148,-420.0,0.0003315,5]
[362000471,1747931450157,-806.37,0.0003315,5]
[362000472,1747931450167,-420.0,0.0003315,5]
[362000473,1747931450176,-420.0,0.0003315,5]
[362000474,1747931450185,-529.91,0.0003315,5]
[362000475,1747931450195,-1121.59,0.0003315,5]
[362000476,1747931450204,-752.99,0.0003315,5]
[362000477,1747931450214,-794.84,0.0003315,5]
[362000478,1747931450225,-420.0,0.0003315,5]
[362000479,1747931450236,-420.0,0.0003315,5]
[362000480,1747931450245,-420.0,0.0003315,5]
[362000481,1747931450254,-420.0,0.0003315,5]
[362000482,1747931450264,-397.58270916,0.0003315,5]
[362000483,1747931450273,-420.0,0.0003315,5]
[362000484,1747931450282,-168.38057973,0.0003315,5]
[362000485,1747931450292,-420.0,0.0003315,5]
[362000486,1747931450301,-179.19,0.0003315,5]
[362000487,1747931450311,-712.77,0.0003315,5]